fUST/lending_fUST_20250515
["ID","MTS","AMOUNT","RATE_DAILY","PERIOD"]
[361164315,1747313458344,-400.0,0.00016575,2]
[361164316,1747313458355,-450.0,0.00016575,2]
[361164317,1747313458365,-450.0,0.00016575,2]
[361164318,1747313458375,-400.0,0.00016575,2]
[361164319,1747313458385,-400.0,0.00016575,2]
[361164320,1747313458395,-450.0,0.00016575,2]
[361164321,1747313458404,-349.19350403,0.00016575,2]
[361164322,1747313458414,-450.0,0.00016575,2]
[361164323,1747313458424,-400.0,0.00016575,2]
[361164324,1747313458434,-400.0,0.00016575,2]
[361164325,1747313458443,-450.0,0.00016575,2]
[361164326,1747313458453,-450.0,0.00016575,2]
[361164327,1747313458462,-515.69,0.00016575,2]
[361164328,1747313458472,-400.0,0.00016575,2]
[361164329,1747313458482,-353.6660509,0.00016575,2]
[361164330,1747313458492,-450.0,0.00016575,2]
[361164331,1747313458503,-450.0,0.00016575,2]
[361164332,1747313458512,-328.10639489,0.00016575,2]
[361164333,1747313458523,-356.14367649,0.00016575,2]
[361164334,1747313458533,-354.57689726,0.00016575,2]
[361164335,1747313458543,-582.44,0.00016575,2]
[361164336,1747313458552,-450.0,0.00016575,2]
[361164337,1747313458563,-450.0,0.00016575,2]
[361164338,1747313458573,-450.0,0.00016575,2]
[361164339,1747313458582,-354.43028542,0.00016575,2]
[361164340,1747313458593,-450.0,0.00016575,2]
[361164341,1747313458603,-450.0,0.00016575,2]
[361164342,1747313458613,-360.67628353,0.00016575,2]
[361164343,1747313458623,-450.0,0.00016575,2]
[361164344,1747313458633,-450.0,0.00016575,2]
[361164345,1747313458642,-361.18144406,0.00016575,2]
[361164346,1747313458652,-450.0,0.00016575,2]
[361164347,1747313458661,-450.0,0.00016575,2]
[361164348,1747313458671,-353.93995056,0.00016575,2]
[361164349,1747313458681,-352.37498567,0.00016575,2]
[361164350,1747313458691,-554.74,0.00016575,2]
[361164351,1747313458702,-450.0,0.00016575,2]
[361164352,1747313458713,-450.0,0.00016575,2]
[361164353,1747313458723,-450.0,0.00016575,2]
[361164354,1747313458732,-450.0,0.00016575,2]
[361164355,1747313458742,-450.0,0.00016575,2]
[361164356,1747313458752,-450.0,0.00016575,2]
[361164357,1747313458761,-352.45328149,0.00016575,2]
[361164358,1747313458772,-450.0,0.00016575,2]
[361164359,1747313458783,-450.0,0.00016575,2]
[361164360,1747313458793,-721.83,0.00016575,2]
[361164361,1747313458803,-450.0,0.00016575,2]
[361164362,1747313458813,-207.69994246,0.00016575,2]
[361164363,1747313458828,-450.0,0.00016575,2]
[361164364,1747313458838,-205.4966764,0.00016575,2]
[361164365,1747313458847,-450.0,0.00016575,2]
[361164366,1747313458858,-450.0,0.00016575,2]
[361164367,1747313458869,-450.0,0.00016575,2]
[361164368,1747313458879,-450.0,0.00016575,2]
[361164369,1747313458890,-450.0,0.00016575,2]
[361164370,1747313458900,-450.0,0.00016575,2]
[361164371,1747313458910,-478.47,0.00016575,2]
[361164372,1747313458920,-2299.19,0.00016575,2]
[361164373,1747313458930,-450.0,0.00016575,2]
[361164374,1747313458940,-450.0,0.00016575,2]
[361164375,1747313458951,-450.0,0.00016575,2]
[361164376,1747313458961,-450.0,0.00016575,2]
[361164377,1747313458971,-450.0,0.00016575,2]
[361164378,1747313458981,-450.0,0.00016575,2]
[361164379,1747313458991,-450.0,0.00016575,2]
[361164380,1747313459001,-450.0,0.00016575,2]
[361164381,1747313459011,-450.0,0.00016575,2]
[361164382,1747313459020,-1369.67,0.00016575,2]
[361164383,1747313459030,-450.0,0.00016575,2]
[361164384,1747313459040,-400.0,0.00016575,2]
[361164385,1747313459050,-450.0,0.00016575,2]
[361164386,1747313459060,-350.97912269,0.00016575,2]
[361164387,1747313459071,-450.0,0.00016575,2]
[361164388,1747313459082,-450.0,0.00016575,2]
[361164389,1747313459092,-450.0,0.00016575,2]
[361164390,1747313459102,-450.0,0.00016575,2]
[361164391,1747313459111,-450.0,0.00016575,2]
[361164392,1747313459121,-450.0,0.00016575,2]
[361164393,1747313459130,-474.35143823,0.00016575,2]
[361164394,1747313459140,-450.0,0.00016575,2]
[361164395,1747313459150,-450.0,0.00016575,2]
[361164396,1747313459160,-522.16496626,0.00016575,2]
[361164397,1747313459169,-450.0,0.00016575,2]
[361164398,1747313459179,-829.05875264,0.00016608,2]
[361164399,1747313459189,-153.0,0.000167,2]
[361164400,1747313459199,-450.0,0.00016712,2]
[361164401,1747313459209,-450.0,0.00016712,2]
[361164402,1747313459219,-621.24,0.00016712,2]
[361164403,1747313459230,-1468.4,0.00016712,2]
[361164404,1747313459239,-698.34,0.00016712,2]
[361164405,1747313459249,-450.0,0.00016712,2]
[361164406,1747313459258,-450.0,0.00016712,2]
[361164407,1747313459268,-592.15,0.00016712,2]
[361164408,1747313459278,-491.0,0.00016712,2]
[361164409,1747313459288,-450.0,0.00016712,2]
[361164410,1747313459300,-420.44,0.00016712,2]
[361164411,1747313459310,-450.0,0.00016712,2]
[361164412,1747313459321,-400.0,0.00016712,2]
[361164413,1747313459331,-450.13,0.00016712,2]
[361164414,1747313459341,-400.0,0.00016712,2]
[361164415,1747313459350,-450.0,0.00016712,2]
[361164416,1747313459360,-450.0,0.00016712,2]
[361164417,1747313459369,-450.0,0.00016712,2]
[361164418,1747313459379,-450.0,0.00016712,2]
[361164419,1747313459389,-450.0,0.00016712,2]
[361164420,1747313459398,-284.42611139,0.00016712,2]
[361164421,1747313459408,-450.0,0.00016712,2]
[361164422,1747313459418,-450.0,0.00016712,2]
[361164423,1747313459427,-515.69,0.00016712,2]
[361164424,1747313459437,-450.0,0.00016712,2]
[361164425,1747313459447,-450.0,0.00016712,2]
[361164426,1747313459456,-450.0,0.00016712,2]
[361164427,1747313459466,-450.0,0.00016712,2]
[361164428,1747313459476,-476.94,0.00016712,2]
[361164429,1747313459603,-450.0,0.00016712,2]
[361164430,1747313459614,-350.0,0.00016712,2]
[361164431,1747313459624,-450.0,0.00016712,2]
[361164432,1747313459633,-450.0,0.00016712,2]
[361164433,1747313459642,-450.0,0.00016712,2]
[361164434,1747313459651,-453.16,0.00016712,2]
[361164435,1747313459661,-450.0,0.00016712,2]
[361164436,1747313459670,-450.0,0.00016712,2]
[361164437,1747313459679,-721.83,0.00016712,2]
[361164438,1747313459689,-450.0,0.00016712,2]
[361164439,1747313459698,-2299.19,0.00016712,2]
[361164440,1747313459708,-339.90149167,0.00016712,2]
[361164441,1747313459717,-529.84,0.00016712,2]
[361164442,1747313459727,-450.0,0.00016712,2]
[361164443,1747313459737,-1369.67,0.00016712,2]
[361164444,1747313459747,-543.09,0.00016712,2]
[361164445,1747313459756,-450.0,0.00016712,2]
[361164446,1747313459766,-450.0,0.00016712,2]
[361164447,1747313459776,-450.0,0.00016712,2]
[361164448,1747313459785,-450.0,0.00016712,2]
[361164449,1747313459795,-450.0,0.00016712,2]
[361164450,1747313459804,-450.0,0.00016712,2]
[361164451,1747313459817,-598.59631961,0.00016762,2]
[361164452,1747313459829,-151.0,0.00016764,2]
[361164453,1747313459838,-151.0,0.00016764,2]
[361164454,1747313459848,-151.0,0.00016764,2]
[361164455,1747313459859,-151.0,0.00016764,2]
[361164456,1747313459869,-151.0,0.00016848,2]
[361164457,1747313459878,-450.0,0.00016849,2]
[361164458,1747313459888,-621.24,0.00016849,2]
[361164459,1747313459897,-1468.4,0.00016849,2]
[361164460,1747313459908,-698.34,0.00016849,2]
[361164461,1747313459919,-592.15,0.00016849,2]
[361164462,1747313459928,-515.40991333,0.00016849,2]
[361164463,1747313459939,-450.0,0.00016849,2]
[361164464,1747313459949,-450.0,0.00016849,2]
[361164465,1747313459959,-450.0,0.00016849,2]
[361164466,1747313459969,-515.69,0.00016849,2]
[361164467,1747313459979,-450.0,0.00016849,2]
[361164468,1747313459989,-450.0,0.00016849,2]
[361164469,1747313460002,-450.0,0.00016849,2]
[361164470,1747313460011,-190.1742314,0.00016849,2]
[361164471,1747313460022,-450.0,0.00016849,2]
[361164472,1747313460032,-450.0,0.00016849,2]
[361164473,1747313460042,-721.83,0.00016849,2]
[361164474,1747313460052,-450.0,0.00016849,2]
[361164475,1747313460063,-2299.19,0.00016849,2]
[361164476,1747313460073,-450.0,0.00016849,2]
[361164477,1747313460083,-1369.67,0.00016849,2]
[361164478,1747313460093,-158.13163905,0.00016849,2]
[361164479,1747313460102,-450.0,0.00016849,2]
[361164480,1747313460112,-450.0,0.00016849,2]
[361164481,1747313460122,-450.0,0.00016849,2]
[361164482,1747313460132,-450.0,0.00016849,2]
[361164483,1747313460141,-151.0,0.00016983,2]
[361164484,1747313460150,-598.59631961,0.00016984,2]
[361164485,1747313460160,-450.0,0.00016986,2]
[361164486,1747313460171,-621.24,0.00016986,2]
[361164487,1747313460180,-1468.4,0.00016986,2]
[361164488,1747313460190,-698.34,0.00016986,2]
[361164489,1747313460200,-592.15,0.00016986,2]
[361164490,1747313460210,-450.0,0.00016986,2]
[361164491,1747313460220,-450.0,0.00016986,2]
[361164492,1747313460230,-450.0,0.00016986,2]
[361164493,1747313460240,-515.69,0.00016986,2]
[361164494,1747313460251,-450.0,0.00016986,2]
[361164495,1747313460261,-399.48136257,0.00016986,2]
[361164496,1747313460271,-450.0,0.00016986,2]
[361164497,1747313460281,-450.0,0.00016986,2]
[361164498,1747313460291,-450.0,0.00016986,2]
[361164499,1747313460301,-721.83,0.00016986,2]
[361164500,1747313460311,-450.0,0.00016986,2]
[361164501,1747313460321,-2299.19,0.00016986,2]
[361164502,1747313460330,-450.0,0.00016986,2]
[361164503,1747313460339,-1369.67,0.00016986,2]
[361164504,1747313460348,-450.0,0.00016986,2]
[361164505,1747313460357,-450.0,0.00016986,2]
[361164506,1747313460367,-450.0,0.00016986,2]
[361164507,1747313460376,-500.0,0.00017021,2]
[361164508,1747313460385,-1000.0,0.00017021,2]
[361164509,1747313460394,-502.25076551,0.00017021,2]
[361164510,1747313460404,-1001.11068399,0.00017021,2]
[361164511,1747313460413,-1000.0,0.00017021,2]
[361164512,1747313460422,-502.73693887,0.00017021,2]
[361164513,1747313460432,-536.19270465,0.00017021,2]
[361164514,1747313460441,-1148.71889894,0.00017021,2]
[361164515,1747313460450,-1003.10517284,0.00017021,2]
[361164516,1747313460459,-1000.0,0.00017021,2]
[361164517,1747313460468,-1000.0,0.00017021,2]
[361164518,1747313460479,-1002.07927141,0.00017021,2]
[361164519,1747313460488,-151.0,0.00017119,2]
[361164520,1747313460498,-151.0,0.00017119,2]
[361164521,1747313460507,-151.0,0.00017119,2]
[361164522,1747313460516,-151.0,0.00017119,2]
[361164523,1747313460525,-450.0,0.00017123,2]
[361164524,1747313460535,-621.24,0.00017123,2]
[361164525,1747313460544,-1468.4,0.00017123,2]
[361164526,1747313460554,-698.34,0.00017123,2]
[361164527,1747313460563,-592.15,0.00017123,2]
[361164528,1747313460572,-450.0,0.00017123,2]
[361164529,1747313460582,-450.0,0.00017123,2]
[361164530,1747313460591,-450.0,0.00017123,2]
[361164531,1747313460600,-515.69,0.00017123,2]
[361164532,1747313460610,-450.0,0.00017123,2]
[361164533,1747313460619,-450.0,0.00017123,2]
[361164534,1747313460629,-450.0,0.00017123,2]
[361164535,1747313460638,-265.53838688,0.00017123,2]
[361164536,1747313460647,-721.83,0.00017123,2]
[361164537,1747313460657,-450.0,0.00017123,2]
[361164538,1747313460666,-2299.19,0.00017123,2]
[361164539,1747313460675,-450.0,0.00017123,2]
[361164540,1747313460684,-1369.67,0.00017123,2]
[361164541,1747313460696,-450.0,0.00017123,2]
[361164542,1747313460705,-277.67,0.00017123,2]
[361164543,1747313460714,-450.0,0.00017123,2]
[361164544,1747313460723,-500.0,0.00017254,2]
[361164545,1747313460742,-151.0,0.0001726,2]
[361164546,1747313460753,-595.66010842,0.0001726,2]
[361164547,1747313460763,-621.24,0.0001726,2]
[361164548,1747313460773,-1468.4,0.0001726,2]
[361164549,1747313460783,-199.9307136,0.0001726,2]
[361164550,1747313460821,-498.4092864,0.0001726,2]
[361164551,1747313460832,-592.15,0.0001726,2]
[361164552,1747313460842,-450.0,0.0001726,2]
[361164553,1747313460851,-450.0,0.0001726,2]
[361164554,1747313460861,-450.0,0.0001726,2]
[361164555,1747313460871,-515.69,0.0001726,2]
[361164556,1747313460881,-450.0,0.0001726,2]
[361164557,1747313460891,-450.0,0.0001726,2]
[361164558,1747313460900,-450.0,0.0001726,2]
[361164559,1747313460911,-721.83,0.0001726,2]
[361164560,1747313460920,-450.0,0.0001726,2]
[361164561,1747313460930,-2299.19,0.0001726,2]
[361164562,1747313460939,-450.0,0.0001726,2]
[361164563,1747313460949,-95.11755369,0.0001726,2]
[361164568,1747313814667,4000.0,0.00028015,30]
[361164571,1747314183672,680.754597,0.00027397,120]
[361164575,1747314218273,708.82,0.00027397,120]
[361164577,1747314479179,168.53883069,0.000149,2]
[361164583,1747314597440,5000.0,0.00015,2]
[361164613,1747314631912,-5000.0,0.00015375,2]
[361164615,1747314631921,-181.8448286,0.0001553,2]
[361164616,1747314631931,-300.0,0.00016099,2]
[361164617,1747314631941,-1200.0,0.00016099,2]
[361164618,1747314631951,-300.0,0.00016099,2]
[361164619,1747314631960,-7294.0,0.000161,2]
[361164620,1747314632091,-151.45521363,0.00016563,2]
[361164621,1747314632138,-207.4,0.00016563,2]
[361164622,1747314632148,-450.0,0.00016571,2]
[361164623,1747314632158,-511.3,0.00016571,2]
[361164624,1747314632167,-1628.59,0.00016571,2]
[361164625,1747314632177,-1023.29,0.00016571,2]
[361164626,1747314632191,-450.0,0.00016571,2]
[361164627,1747314632200,-450.0,0.00016571,2]
[361164628,1747314632209,-450.0,0.00016571,2]
[361164629,1747314632219,-450.0,0.00016571,2]
[361164630,1747314632230,-647.14,0.00016571,2]
[361164631,1747314632243,-1040.11,0.00016572,2]
[361164632,1747314632252,-450.0,0.00016572,2]
[361164633,1747314632264,-450.0,0.00016572,2]
[361164634,1747314632274,-450.0,0.00016572,2]
[361164635,1747314632283,-494.66,0.00016572,2]
[361164636,1747314632293,-450.0,0.00016573,2]
[361164637,1747314632302,-400.0,0.00016573,2]
[361164638,1747314632312,-450.0,0.00016573,2]
[361164639,1747314632321,-450.0,0.00016573,2]
[361164640,1747314632331,-450.0,0.00016573,2]
[361164641,1747314632340,-450.0,0.00016573,2]
[361164642,1747314632350,-450.0,0.00016573,2]
[361164643,1747314632360,-400.0,0.00016573,2]
[361164644,1747314632371,-450.0,0.00016573,2]
[361164645,1747314632381,-450.0,0.00016573,2]
[361164646,1747314632391,-450.0,0.00016573,2]
[361164647,1747314632400,-446.28,0.00016573,2]
[361164648,1747314632410,-450.0,0.00016573,2]
[361164649,1747314632419,-450.0,0.00016708,2]
[361164650,1747314632428,-511.3,0.00016708,2]
[361164651,1747314632438,-1628.59,0.00016708,2]
[361164652,1747314632448,-1023.29,0.00016708,2]
[361164653,1747314632457,-450.0,0.00016708,2]
[361164654,1747314632467,-450.0,0.00016708,2]
[361164655,1747314632476,-450.0,0.00016708,2]
[361164656,1747314632487,-450.0,0.00016708,2]
[361164657,1747314632496,-647.14,0.00016708,2]
[361164658,1747314632505,-1040.11,0.00016709,2]
[361164659,1747314632515,-450.0,0.00016709,2]
[361164660,1747314632525,-450.0,0.00016709,2]
[361164661,1747314632535,-450.0,0.00016709,2]
[361164662,1747314632545,-494.66,0.00016709,2]
[361164663,1747314632555,-450.0,0.0001671,2]
[361164664,1747314632564,-450.0,0.0001671,2]
[361164665,1747314632574,-450.0,0.0001671,2]
[361164666,1747314632583,-450.0,0.0001671,2]
[361164667,1747314632593,-450.0,0.0001671,2]
[361164668,1747314632603,-180.79301604,0.00016845,2]
[361164669,1747314632612,-511.3,0.00016845,2]
[361164670,1747314632621,-1628.59,0.00016845,2]
[361164671,1747314632631,-1023.29,0.00016845,2]
[361164672,1747314632640,-450.0,0.00016845,2]
[361164673,1747314632650,-450.0,0.00016845,2]
[361164674,1747314632659,-450.0,0.00016845,2]
[361164675,1747314632669,-497.84,0.00016845,2]
[361164676,1747314632679,-647.14,0.00016845,2]
[361164677,1747314632690,-1040.11,0.00016846,2]
[361164678,1747314632700,-450.0,0.00016846,2]
[361164679,1747314632709,-450.0,0.00016846,2]
[361164680,1747314632719,-450.0,0.00016846,2]
[361164681,1747314632728,-494.66,0.00016846,2]
[361164682,1747314632738,-450.0,0.00016847,2]
[361164683,1747314632748,-450.0,0.00016847,2]
[361164684,1747314632758,-450.0,0.00016847,2]
[361164685,1747314632768,-450.0,0.00016847,2]
[361164686,1747314632777,-450.0,0.00016847,2]
[361164687,1747314632787,-600.0,0.000169,2]
[361164688,1747314632797,-390.60563866,0.00016955,2]
[361164689,1747314632807,-379.58253909,0.00016955,2]
[361164690,1747314632817,-508.09586925,0.00016955,2]
[361164691,1747314632827,-314.33516537,0.00016956,2]
[361164692,1747314632837,-12629.50215115,0.00016956,2]
[361164693,1747314632847,-160.0,0.00016956,2]
[361164694,1747314632858,-160.0,0.00016956,2]
[361164695,1747314632869,-160.0,0.00016956,2]
[361164696,1747314632879,-998.07804268,0.00016956,2]
[361164697,1747314632889,-160.0,0.00016956,2]
[361164698,1747314632898,-160.0,0.00016956,2]
[361164699,1747314632908,-422.32131761,0.00016956,2]
[361164700,1747314632918,-160.0,0.00016956,2]
[361164701,1747314632927,-212.23495278,0.00016956,2]
[361164702,1747314632937,-160.0,0.00016956,2]
[361164703,1747314632947,-160.0,0.00016956,2]
[361164704,1747314632957,-511.3,0.00016982,2]
[361164705,1747314632967,-1628.59,0.00016982,2]
[361164706,1747314632976,-1023.29,0.00016982,2]
[361164707,1747314632986,-450.0,0.00016982,2]
[361164708,1747314632996,-450.0,0.00016982,2]
[361164709,1747314633005,-450.0,0.00016982,2]
[361164710,1747314633015,-647.14,0.00016982,2]
[361164711,1747314633025,-1040.11,0.00016983,2]
[361164712,1747314633035,-392.2953512,0.00016983,2]
[361164713,1747314633045,-450.0,0.00016983,2]
[361164714,1747314633055,-450.0,0.00016983,2]
[361164715,1747314633065,-494.66,0.00016983,2]
[361164716,1747314633075,-450.0,0.00016984,2]
[361164717,1747314633085,-450.0,0.00016984,2]
[361164718,1747314633095,-450.0,0.00016984,2]
[361164719,1747314633105,-450.0,0.00016984,2]
[361164720,1747314633116,-450.0,0.00016984,2]
[361164721,1747314633126,-331.62350108,0.00017021,2]
[361164722,1747314633136,-652.61296533,0.00017035,2]
[361164723,1747314633146,-511.3,0.00017119,2]
[361164724,1747314633156,-1628.59,0.00017119,2]
[361164725,1747314633166,-1023.29,0.00017119,2]
[361164726,1747314633177,-450.0,0.00017119,2]
[361164727,1747314633191,-450.0,0.00017119,2]
[361164728,1747314633201,-450.0,0.00017119,2]
[361164729,1747314633211,-647.14,0.00017119,2]
[361164730,1747314633221,-1040.11,0.0001712,2]
[361164731,1747314633231,-450.0,0.0001712,2]
[361164732,1747314633240,-450.0,0.0001712,2]
[361164733,1747314633250,-494.66,0.0001712,2]
[361164734,1747314633259,-450.0,0.00017121,2]
[361164735,1747314633271,-450.0,0.00017121,2]
[361164736,1747314633281,-450.0,0.00017121,2]
[361164737,1747314633291,-450.0,0.00017121,2]
[361164738,1747314633301,-450.0,0.00017121,2]
[361164739,1747314633310,-153.0,0.00017151,2]
[361164740,1747314633320,-331.62350105,0.00017234,2]
[361164741,1747314633329,-511.3,0.00017256,2]
[361164742,1747314633339,-1628.59,0.00017256,2]
[361164743,1747314633348,-1023.29,0.00017256,2]
[361164744,1747314633357,-450.0,0.00017256,2]
[361164745,1747314633370,-450.0,0.00017256,2]
[361164746,1747314633380,-450.0,0.00017256,2]
[361164747,1747314633389,-647.14,0.00017256,2]
[361164748,1747314633399,-1040.11,0.00017257,2]
[361164749,1747314633409,-450.0,0.00017257,2]
[361164750,1747314633418,-450.0,0.00017257,2]
[361164751,1747314633428,-494.66,0.00017257,2]
[361164752,1747314633437,-450.0,0.00017258,2]
[361164753,1747314633447,-450.0,0.00017258,2]
[361164754,1747314633456,-450.0,0.00017258,2]
[361164755,1747314633466,-450.0,0.00017258,2]
[361164756,1747314633476,-450.0,0.00017258,2]
[361164757,1747314633485,-511.3,0.00017393,2]
[361164758,1747314633495,-1628.59,0.00017393,2]
[361164759,1747314633505,-1023.29,0.00017393,2]
[361164760,1747314633514,-450.0,0.00017393,2]
[361164761,1747314633525,-450.0,0.00017393,2]
[361164762,1747314633534,-450.0,0.00017393,2]
[361164763,1747314633544,-647.14,0.00017393,2]
[361164764,1747314633554,-1040.11,0.00017394,2]
[361164765,1747314633563,-337.92241107,0.00017394,2]
[361164766,1747314633572,-450.0,0.00017394,2]
[361164767,1747314633582,-494.66,0.00017394,2]
[361164768,1747314633591,-514.94098135,0.00017395,2]
[361164769,1747314633600,-450.0,0.00017395,2]
[361164770,1747314633610,-450.0,0.00017395,2]
[361164771,1747314633621,-450.0,0.00017395,2]
[361164772,1747314633631,-450.0,0.00017395,2]
[361164773,1747314633641,-2505.01891436,0.00017415,2]
[361164774,1747314633651,-331.62350105,0.00017446,2]
[361164775,1747314633661,-160.0,0.00017517,2]
[361164776,1747314633671,-511.3,0.0001753,2]
[361164777,1747314633681,-1628.59,0.0001753,2]
[361164778,1747314633691,-1023.29,0.0001753,2]
[361164779,1747314633701,-450.0,0.0001753,2]
[361164780,1747314633710,-450.0,0.0001753,2]
[361164781,1747314633719,-450.0,0.0001753,2]
[361164782,1747314633729,-647.14,0.0001753,2]
[361164783,1747314633738,-1040.11,0.00017531,2]
[361164784,1747314633748,-450.0,0.00017531,2]
[361164785,1747314633757,-494.66,0.00017531,2]
[361164786,1747314633767,-450.0,0.00017532,2]
[361164787,1747314633776,-450.0,0.00017532,2]
[361164788,1747314633786,-450.0,0.00017532,2]
[361164789,1747314633796,-450.0,0.00017532,2]
[361164790,1747314633805,-486.7611789,0.00017539,2]
[361164791,1747314633815,-2237.0,0.0001757,2]
[361164792,1747314633825,-420.0,0.000176,2]
[361164793,1747314633834,-420.0,0.000176,2]
[361164794,1747314633844,-331.62350105,0.00017659,2]
[361164795,1747314633853,-511.3,0.00017667,2]
[361164796,1747314633863,-1628.59,0.00017667,2]
[361164797,1747314633873,-1023.29,0.00017667,2]
[361164798,1747314633882,-450.0,0.00017667,2]
[361164799,1747314633891,-450.0,0.00017667,2]
[361164800,1747314633901,-450.0,0.00017667,2]
[361164801,1747314633910,-647.14,0.00017667,2]
[361164802,1747314633920,-1040.11,0.00017668,2]
[361164803,1747314633930,-450.0,0.00017668,2]
[361164804,1747314633940,-494.66,0.00017668,2]
[361164805,1747314633950,-450.0,0.00017669,2]
[361164806,1747314633960,-450.0,0.00017669,2]
[361164807,1747314633970,-450.0,0.00017669,2]
[361164808,1747314633979,-450.0,0.00017669,2]
[361164809,1747314633989,-1680.0,0.00017688,2]
[361164810,1747314633998,-560.57299925,0.000177,2]
[361164811,1747314634007,-560.5729991,0.000177,2]
[361164812,1747314634017,-560.5729991,0.000177,2]
[361164813,1747314634027,-560.5729991,0.000177,2]
[361164814,1747314634036,-560.5729991,0.000177,2]
[361164815,1747314634046,-560.5729991,0.000177,2]
[361164816,1747314634055,-560.5729991,0.000177,2]
[361164817,1747314634065,-560.5729991,0.000177,2]
[361164818,1747314634074,-560.5729991,0.000177,2]
[361164819,1747314634084,-560.5729991,0.000177,2]
[361164820,1747314634094,-560.5729991,0.000177,2]
[361164821,1747314634103,-560.5729991,0.000177,2]
[361164822,1747314634113,-560.5729991,0.00017728,2]
[361164823,1747314634123,-5000.0,0.00017789,2]
[361164824,1747314634133,-5000.0,0.00017789,2]
[361164825,1747314634143,-560.5729991,0.00017797,2]
[361164826,1747314634152,-511.3,0.00017804,2]
[361164827,1747314634162,-1628.59,0.00017804,2]
[361164828,1747314634172,-1023.29,0.00017804,2]
[361164829,1747314634183,-450.0,0.00017804,2]
[361164830,1747314634193,-450.0,0.00017804,2]
[361164831,1747314634203,-450.0,0.00017804,2]
[361164832,1747314634212,-647.14,0.00017804,2]
[361164833,1747314634223,-1040.11,0.00017805,2]
[361164834,1747314634232,-450.0,0.00017805,2]
[361164835,1747314634242,-494.66,0.00017805,2]
[361164836,1747314634251,-450.0,0.00017806,2]
[361164837,1747314634262,-450.0,0.00017806,2]
[361164838,1747314634272,-450.0,0.00017806,2]
[361164839,1747314634282,-450.0,0.00017806,2]
[361164840,1747314634292,-560.5729991,0.00017866,2]
[361164841,1747314634301,-500.0,0.0001787,2]
[361164842,1747314634311,-500.0,0.0001787,2]
[361164843,1747314634320,-500.0,0.0001787,2]
[361164844,1747314634330,-500.0,0.0001787,2]
[361164845,1747314634340,-440.41346879,0.0001787,2]
[361164846,1747314634350,-346.14271387,0.0001787,2]
[361164847,1747314634360,-500.0,0.0001787,2]
[361164848,1747314634370,-500.0,0.0001787,2]
[361164849,1747314634381,-500.0,0.0001787,2]
[361164850,1747314634391,-500.0,0.0001787,2]
[361164851,1747314634401,-500.0,0.0001787,2]
[361164852,1747314634411,-500.0,0.0001787,2]
[361164853,1747314634421,-500.0,0.0001787,2]
[361164854,1747314634432,-500.0,0.0001787,2]
[361164855,1747314634442,-284.03540961,0.0001787,2]
[361164856,1747314634453,-500.0,0.0001787,2]
[361164857,1747314634463,-500.0,0.0001787,2]
[361164858,1747314634473,-500.0,0.0001787,2]
[361164859,1747314634482,-500.0,0.0001787,2]